[Event "*** Titled Tuesday Blitz"]
[Site "Chess.com"]
[Date "2020.05.12"]
[Round "7"]
[White "DLR7"]
[Black "Kildepiotr"]
[Result "1-0"]
[WhiteElo "2716"]
[BlackElo "2547"]
[TimeControl "180+1"]
[EndTime "11:16:32 PDT"]
[Termination "DLR7 won by resignation"]

1. d4 {[%clk 0:03:00.9]} 1... c5 {[%clk 0:02:58.6]} 2. e3 {[%clk 0:02:57.9]}
2... Nf6 {[%clk 0:02:58]} 3. Nf3 {[%clk 0:02:56.9]} 3... d5 {[%clk 0:02:58.1]}
4. Bd3 {[%clk 0:02:55.6]} 4... Bg4 {[%clk 0:02:57.3]} 5. O-O {[%clk 0:02:47]}
5... e6 {[%clk 0:02:57.1]} 6. b3 {[%clk 0:02:44.6]} 6... cxd4 {[%clk 0:02:54.1]}
7. exd4 {[%clk 0:02:43.5]} 7... Nc6 {[%clk 0:02:54.7]} 8. Bb2 {[%clk 0:02:43.2]}
8... Bd6 {[%clk 0:02:54.8]} 9. h3 {[%clk 0:02:40.9]} 9... Bh5 {[%clk 0:02:54.4]}
10. Nbd2 {[%clk 0:02:40.1]} 10... O-O {[%clk 0:02:53.6]} 11. a3 {[%clk
0:02:34.6]} 11... Rc8 {[%clk 0:02:50.8]} 12. Qe2 {[%clk 0:02:28.6]} 12... Bb8
{[%clk 0:02:44]} 13. Qe3 {[%clk 0:02:25.3]} 13... Bg6 {[%clk 0:02:34.2]} 14. Ne5
{[%clk 0:02:16.4]} 14... Bxd3 {[%clk 0:02:31.2]} 15. Qxd3 {[%clk 0:02:13.9]}
15... Nxe5 {[%clk 0:02:29.5]} 16. dxe5 {[%clk 0:02:14.8]} 16... Nd7 {[%clk
0:02:29.3]} 17. f4 {[%clk 0:02:09.7]} 17... Qb6+ {[%clk 0:02:15.3]} 18. Bd4
{[%clk 0:02:04]} 18... Qc6 {[%clk 0:02:14]} 19. c3 {[%clk 0:02:01.5]} 19... Bc7
{[%clk 0:02:09.6]} 20. Rac1 {[%clk 0:02:00.9]} 20... Bb6 {[%clk 0:02:09.2]} 21.
c4 {[%clk 0:01:58.8]} 21... Bxd4+ {[%clk 0:02:02.3]} 22. Qxd4 {[%clk 0:01:57.2]}
22... Qb6 {[%clk 0:01:06.2]} 23. Qxb6 {[%clk 0:01:52.1]} 23... Nxb6 {[%clk
0:01:07.1]} 24. c5 {[%clk 0:01:53]} 24... Nd7 {[%clk 0:01:07.1]} 25. b4 {[%clk
0:01:53.9]} 25... f6 {[%clk 0:01:07.3]} 26. exf6 {[%clk 0:01:44.3]} 26... gxf6
{[%clk 0:01:03.5]} 27. Nf3 {[%clk 0:01:40.4]} 27... e5 {[%clk 0:01:00.5]} 28.
Rfe1 {[%clk 0:01:37.9]} 28... Rfe8 {[%clk 0:00:57.7]} 29. Rcd1 {[%clk
0:01:35.7]} 29... d4 {[%clk 0:00:52.6]} 30. Nh4 {[%clk 0:01:36]} 30... Kf7
{[%clk 0:00:42.1]} 31. Nf5 {[%clk 0:01:34.1]} 31... Rc6 {[%clk 0:00:39.4]} 32.
Nd6+ {[%clk 0:01:29.9]} 32... Rxd6 {[%clk 0:00:39]} 33. cxd6 {[%clk 0:01:29.9]}
33... Re6 {[%clk 0:00:38.6]} 34. fxe5 {[%clk 0:01:27.6]} 34... fxe5 {[%clk
0:00:38.6]} 35. Rf1+ {[%clk 0:01:27.5]} 35... Kg7 {[%clk 0:00:36.6]} 36. Rc1
{[%clk 0:01:24]} 36... Rxd6 {[%clk 0:00:36.7]} 37. Rc7 {[%clk 0:01:23.5]} 37...
d3 {[%clk 0:00:34.9]} 38. Kf2 {[%clk 0:01:21.6]} 38... Kg6 {[%clk 0:00:30.1]}
39. Ke3 {[%clk 0:01:19.5]} 39... Nf6 {[%clk 0:00:29.8]} 40. Rxb7 {[%clk
0:01:16.4]} 40... d2 {[%clk 0:00:23.7]} 41. Rd1 {[%clk 0:01:14.4]} 41... Nd5+
{[%clk 0:00:21.2]} 42. Kxd2 {[%clk 0:01:11.3]} 42... Nc3+ {[%clk 0:00:16.6]} 43.
Kxc3 {[%clk 0:01:11.1]} 43... Rxd1 {[%clk 0:00:17.5]} 44. Rxa7 {[%clk
0:01:03.5]} 44... e4 {[%clk 0:00:17.7]} 45. Re7 {[%clk 0:01:00.1]} 45... Kf5
{[%clk 0:00:17.8]} 46. b5 {[%clk 0:00:51.6]} 46... Rd3+ {[%clk 0:00:17.4]} 47.
Kb4 {[%clk 0:00:51.7]} 47... e3 {[%clk 0:00:17.1]} 48. b6 {[%clk 0:00:49.7]}
48... Rd4+ {[%clk 0:00:14.8]} 49. Kc3 {[%clk 0:00:46.5]} 49... Re4 {[%clk
0:00:14.1]} 50. Rxe4 {[%clk 0:00:46.7]} 50... Kxe4 {[%clk 0:00:15]} 51. b7
{[%clk 0:00:47.1]} 1-0

[Event "*** Titled Tuesday Blitz"]
[Site "Chess.com"]
[Date "2020.05.12"]
[Round "7"]
[White "DenisQ"]
[Black "czasnaszachy"]
[Result "0-1"]
[WhiteElo "2594"]
[BlackElo "2364"]
[TimeControl "180+1"]
[EndTime "11:16:33 PDT"]
[Termination "czasnaszachy won on time"]

1. Nf3 {[%clk 0:03:00.9]} 1... d5 {[%clk 0:02:54.4]} 2. c4 {[%clk 0:03:00]} 2...
d4 {[%clk 0:02:53.4]} 3. g3 {[%clk 0:02:59]} 3... c5 {[%clk 0:02:52.8]} 4. Bg2
{[%clk 0:02:59.2]} 4... Nc6 {[%clk 0:02:52.3]} 5. O-O {[%clk 0:02:59.2]} 5... e5
{[%clk 0:02:51.3]} 6. e3 {[%clk 0:02:59]} 6... Bd6 {[%clk 0:02:44.8]} 7. exd4
{[%clk 0:02:58.4]} 7... cxd4 {[%clk 0:02:39.9]} 8. Re1 {[%clk 0:02:56.6]} 8...
f6 {[%clk 0:02:32.6]} 9. d3 {[%clk 0:02:55.3]} 9... Nge7 {[%clk 0:02:32]} 10.
Na3 {[%clk 0:02:49.5]} 10... a6 {[%clk 0:02:28.3]} 11. Nc2 {[%clk 0:02:47.2]}
11... O-O {[%clk 0:02:26.8]} 12. Rb1 {[%clk 0:02:33.3]} 12... a5 {[%clk
0:01:58.3]} 13. Nd2 {[%clk 0:02:31.3]} 13... Be6 {[%clk 0:01:52.5]} 14. Ne4
{[%clk 0:02:24.2]} 14... f5 {[%clk 0:01:40.3]} 15. Nxd6 {[%clk 0:02:19.6]} 15...
Qxd6 {[%clk 0:01:41.2]} 16. b3 {[%clk 0:02:12.1]} 16... Rad8 {[%clk 0:01:39.5]}
17. Ba3 {[%clk 0:02:02.8]} 17... Qd7 {[%clk 0:01:36]} 18. b4 {[%clk 0:01:59.7]}
18... axb4 {[%clk 0:01:34]} 19. Nxb4 {[%clk 0:01:58.5]} 19... Rf7 {[%clk
0:01:28.4]} 20. Nxc6 {[%clk 0:01:34.8]} 20... Nxc6 {[%clk 0:01:26.4]} 21. Bxc6
{[%clk 0:01:34.5]} 21... Qxc6 {[%clk 0:01:21.6]} 22. Rxe5 {[%clk 0:01:33.8]}
22... f4 {[%clk 0:01:18.4]} 23. Qe2 {[%clk 0:01:30.7]} 23... f3 {[%clk
0:00:59.9]} 24. Qe1 {[%clk 0:00:50.5]} 24... Bf5 {[%clk 0:00:57.8]} 25. Rb3
{[%clk 0:00:32.7]} 25... Bg6 {[%clk 0:00:35.1]} 26. Re6 {[%clk 0:00:24]} 26...
Qd7 {[%clk 0:00:32.8]} 27. Qe5 {[%clk 0:00:11.9]} 27... Rf5 {[%clk 0:00:27.4]}
28. Qd6 {[%clk 0:00:07.6]} 28... Qxd6 {[%clk 0:00:20.1]} 29. Rxd6 {[%clk
0:00:07.4]} 29... Re8 {[%clk 0:00:20.2]} 30. h4 {[%clk 0:00:03]} 30... Re1+
{[%clk 0:00:18.4]} 31. Kh2 {[%clk 0:00:03.6]} 31... Rf1 {[%clk 0:00:18.4]} 32.
Rb2 {[%clk 0:00:03.1]} 32... Re5 {[%clk 0:00:13.9]} 33. Rxd4 {[%clk 0:00:03.1]}
33... Re2 {[%clk 0:00:13.4]} 0-1

[Event "*** Titled Tuesday Blitz"]
[Site "Chess.com"]
[Date "2020.05.12"]
[Round "7"]
[White "Grandmaster2B"]
[Black "BabyBoss31"]
[Result "0-1"]
[WhiteElo "2464"]
[BlackElo "2328"]
[TimeControl "180+1"]
[EndTime "11:16:34 PDT"]
[Termination "BabyBoss31 won by resignation"]

1. e4 {[%clk 0:03:00.9]} 1... e6 {[%clk 0:02:58.6]} 2. d4 {[%clk 0:03:00.6]}
2... d5 {[%clk 0:02:57.6]} 3. Nd2 {[%clk 0:03:01.2]} 3... Nf6 {[%clk 0:02:57.9]}
4. e5 {[%clk 0:03:01.5]} 4... Nfd7 {[%clk 0:02:58.5]} 5. Bd3 {[%clk 0:03:02.1]}
5... c5 {[%clk 0:02:58.8]} 6. c3 {[%clk 0:03:02.8]} 6... Nc6 {[%clk 0:02:59.4]}
7. Ne2 {[%clk 0:03:03.5]} 7... cxd4 {[%clk 0:02:59.7]} 8. cxd4 {[%clk
0:03:04.4]} 8... f6 {[%clk 0:03:00.3]} 9. exf6 {[%clk 0:03:05.1]} 9... Nxf6
{[%clk 0:03:01.2]} 10. Nf3 {[%clk 0:03:05.6]} 10... Bd6 {[%clk 0:03:01.8]} 11.
O-O {[%clk 0:03:06.5]} 11... Qc7 {[%clk 0:03:02.4]} 12. Nc3 {[%clk 0:03:07.2]}
12... a6 {[%clk 0:03:01.8]} 13. Be3 {[%clk 0:03:06.6]} 13... O-O {[%clk
0:03:01]} 14. Rc1 {[%clk 0:03:06.7]} 14... Bd7 {[%clk 0:02:36.6]} 15. a3 {[%clk
0:02:54.8]} 15... Be8 {[%clk 0:02:31.7]} 16. h3 {[%clk 0:02:51]} 16... Bh5
{[%clk 0:02:29.1]} 17. Be2 {[%clk 0:02:50.4]} 17... Rae8 {[%clk 0:02:26.1]} 18.
Kh1 {[%clk 0:02:41.6]} 18... Bf4 {[%clk 0:02:10.4]} 19. Bxf4 {[%clk 0:02:07.6]}
19... Qxf4 {[%clk 0:02:11.3]} 20. g3 {[%clk 0:02:07.6]} 20... Bxf3+ {[%clk
0:02:07.1]} 21. Bxf3 {[%clk 0:02:06.2]} 21... Qxd4 {[%clk 0:02:07.5]} 22. Na4
{[%clk 0:02:00.3]} 22... e5 {[%clk 0:02:00.5]} 23. Nc5 {[%clk 0:01:56]} 23...
Qxd1 {[%clk 0:01:25.2]} 24. Rfxd1 {[%clk 0:01:56.9]} 24... Nd4 {[%clk
0:01:25.7]} 25. Bg2 {[%clk 0:01:50.2]} 25... Re7 {[%clk 0:01:21.2]} 26. f4
{[%clk 0:01:45.9]} 26... Ne2 {[%clk 0:01:16.1]} 27. fxe5 {[%clk 0:01:40.3]}
27... Rxe5 {[%clk 0:01:13.3]} 28. Rc2 {[%clk 0:01:35.4]} 28... Nxg3+ {[%clk
0:01:11.5]} 29. Kh2 {[%clk 0:01:34.3]} 29... Nf5 {[%clk 0:01:03.7]} 30. Nd3
{[%clk 0:01:18.2]} 30... Re7 {[%clk 0:00:58.3]} 31. Rc5 {[%clk 0:01:13.7]} 31...
Ne3 {[%clk 0:00:56.4]} 32. Re1 {[%clk 0:01:12.8]} 32... Rfe8 {[%clk 0:00:53.8]}
33. Bf3 {[%clk 0:01:07.9]} 33... d4 {[%clk 0:00:48.4]} 34. Ra5 {[%clk
0:00:54.9]} 34... Nc4 {[%clk 0:00:33.1]} 35. Rxe7 {[%clk 0:00:46.1]} 35... Rxe7
{[%clk 0:00:34]} 36. Ra4 {[%clk 0:00:31.9]} 36... Nd2 {[%clk 0:00:32.5]} 37. Bg2
{[%clk 0:00:30.9]} 37... Rd7 {[%clk 0:00:17.4]} 38. Nc5 {[%clk 0:00:29.8]} 38...
Rc7 {[%clk 0:00:16.6]} 39. Nxb7 {[%clk 0:00:11.8]} 39... Rc2 {[%clk 0:00:16.2]}
40. Rxd4 {[%clk 0:00:11.9]} 40... Nf3+ {[%clk 0:00:16.5]} 0-1

[Event "*** Titled Tuesday Blitz"]
[Site "Chess.com"]
[Date "2020.05.12"]
[Round "7"]
[White "Shubinkirill2003"]
[Black "wonderfultime"]
[Result "0-1"]
[WhiteElo "2587"]
[BlackElo "2935"]
[TimeControl "180+1"]
[EndTime "11:16:36 PDT"]
[Termination "wonderfultime won by resignation"]

1. e4 {[%clk 0:03:00.9]} 1... c5 {[%clk 0:03:00.2]} 2. Nf3 {[%clk 0:02:59.5]}
2... Nf6 {[%clk 0:03:00.8]} 3. Nc3 {[%clk 0:02:54.7]} 3... d5 {[%clk 0:03:00.9]}
4. Bb5+ {[%clk 0:02:54.1]} 4... Bd7 {[%clk 0:03:00.6]} 5. e5 {[%clk 0:02:53.7]}
5... Bxb5 {[%clk 0:02:59.1]} 6. Nxb5 {[%clk 0:02:47.7]} 6... Qd7 {[%clk
0:02:59.1]} 7. Nc3 {[%clk 0:02:40.8]} 7... Ng8 {[%clk 0:02:58.2]} 8. d4 {[%clk
0:02:38]} 8... cxd4 {[%clk 0:02:56.9]} 9. Nxd4 {[%clk 0:02:37.3]} 9... e6 {[%clk
0:02:56.5]} 10. Be3 {[%clk 0:02:34.3]} 10... Nc6 {[%clk 0:02:56.2]} 11. f4
{[%clk 0:02:30.7]} 11... Nge7 {[%clk 0:02:53.9]} 12. Nce2 {[%clk 0:02:29.6]}
12... g6 {[%clk 0:02:42.3]} 13. O-O {[%clk 0:02:25.2]} 13... Bg7 {[%clk
0:02:42.2]} 14. Qd2 {[%clk 0:02:15.6]} 14... O-O {[%clk 0:02:41.1]} 15. c3
{[%clk 0:02:12.5]} 15... a6 {[%clk 0:02:38.6]} 16. Nxc6 {[%clk 0:02:05.9]} 16...
Nxc6 {[%clk 0:02:38]} 17. Nd4 {[%clk 0:02:02.9]} 17... Ne7 {[%clk 0:02:29.8]}
18. Kh1 {[%clk 0:01:48.2]} 18... Rae8 {[%clk 0:02:27.4]} 19. Rae1 {[%clk
0:01:44.1]} 19... f6 {[%clk 0:02:26.3]} 20. exf6 {[%clk 0:01:45]} 20... Bxf6
{[%clk 0:02:27.2]} 21. Nf3 {[%clk 0:01:42]} 21... Nf5 {[%clk 0:02:27]} 22. Bc5
{[%clk 0:01:41.7]} 22... Rf7 {[%clk 0:02:26.5]} 23. g4 {[%clk 0:01:35.6]} 23...
Nd6 {[%clk 0:02:23.4]} 24. Bd4 {[%clk 0:01:28.1]} 24... Ne4 {[%clk 0:02:16.5]}
25. Qe3 {[%clk 0:01:26]} 25... Ref8 {[%clk 0:02:16.5]} 26. Ne5 {[%clk
0:01:23.2]} 26... Bxe5 {[%clk 0:02:15.1]} 27. Bxe5 {[%clk 0:01:24.1]} 27... Qb5
{[%clk 0:02:13.6]} 28. b3 {[%clk 0:01:03.7]} 28... a5 {[%clk 0:01:51.5]} 29. h4
{[%clk 0:00:49.2]} 29... a4 {[%clk 0:01:40.7]} 30. c4 {[%clk 0:00:36.9]} 30...
Qc6 {[%clk 0:01:40.2]} 31. cxd5 {[%clk 0:00:35.6]} 31... exd5 {[%clk 0:01:41.1]}
32. Ba1 {[%clk 0:00:30.9]} 32... h6 {[%clk 0:01:13.8]} 33. f5 {[%clk 0:00:24.2]}
33... gxf5 {[%clk 0:01:11.5]} 34. gxf5 {[%clk 0:00:19.4]} 34... Kh7 {[%clk
0:01:11.5]} 35. Rg1 {[%clk 0:00:19.3]} 35... Nf6 {[%clk 0:00:51.6]} 36. Qd4
{[%clk 0:00:16.8]} 36... Qc2 {[%clk 0:00:46.3]} 37. Ref1 {[%clk 0:00:11.5]}
37... Qe4+ {[%clk 0:00:42.9]} 38. Qxe4 {[%clk 0:00:11.5]} 38... Nxe4 {[%clk
0:00:43.8]} 39. bxa4 {[%clk 0:00:10.4]} 39... h5 {[%clk 0:00:40.2]} 40. f6
{[%clk 0:00:08.9]} 40... Rg8 {[%clk 0:00:39.6]} 41. Rxg8 {[%clk 0:00:08.2]}
41... Kxg8 {[%clk 0:00:40.5]} 42. Rf5 {[%clk 0:00:08.3]} 42... Ng3+ {[%clk
0:00:40.5]} 0-1

[Event "*** Titled Tuesday Blitz"]
[Site "Chess.com"]
[Date "2020.05.12"]
[Round "7"]
[White "maciek_92"]
[Black "Baby_Shak"]
[Result "1-0"]
[WhiteElo "2647"]
[BlackElo "2472"]
[TimeControl "180+1"]
[EndTime "11:16:38 PDT"]
[Termination "maciek_92 won by checkmate"]

1. e4 {[%clk 0:03:00.9]} 1... e5 {[%clk 0:02:59.7]} 2. Nf3 {[%clk 0:03:00.7]}
2... Nc6 {[%clk 0:02:59.7]} 3. Bb5 {[%clk 0:03:00.3]} 3... a6 {[%clk 0:02:59.6]}
4. Ba4 {[%clk 0:03:00.3]} 4... d6 {[%clk 0:02:59.5]} 5. c4 {[%clk 0:02:54]} 5...
Bg4 {[%clk 0:02:51.7]} 6. d3 {[%clk 0:02:48.6]} 6... Nf6 {[%clk 0:02:46]} 7. h3
{[%clk 0:02:47.8]} 7... Bxf3 {[%clk 0:02:43.7]} 8. Qxf3 {[%clk 0:02:48.7]} 8...
Be7 {[%clk 0:02:44.6]} 9. Be3 {[%clk 0:02:48.7]} 9... O-O {[%clk 0:02:42.9]} 10.
Nc3 {[%clk 0:02:48.1]} 10... Nb4 {[%clk 0:02:24.2]} 11. Rd1 {[%clk 0:02:26.5]}
11... b5 {[%clk 0:02:22]} 12. Bb3 {[%clk 0:02:21.4]} 12... bxc4 {[%clk
0:02:09.7]} 13. dxc4 {[%clk 0:02:22.3]} 13... c5 {[%clk 0:02:01.8]} 14. Bxc5
{[%clk 0:02:14.5]} 14... dxc5 {[%clk 0:01:53.5]} 15. Rxd8 {[%clk 0:02:15.4]}
15... Rfxd8 {[%clk 0:01:53.5]} 16. Nd5 {[%clk 0:02:13.2]} 16... Nfxd5 {[%clk
0:01:52.3]} 17. exd5 {[%clk 0:02:08.3]} 17... Bd6 {[%clk 0:01:46.4]} 18. O-O
{[%clk 0:02:05.9]} 18... a5 {[%clk 0:01:46.1]} 19. a3 {[%clk 0:02:01.7]} 19...
Na6 {[%clk 0:01:43.7]} 20. Ba4 {[%clk 0:01:59]} 20... Nc7 {[%clk 0:01:43]} 21.
Re1 {[%clk 0:01:46.1]} 21... Rab8 {[%clk 0:01:40.4]} 22. Qc3 {[%clk 0:01:45.6]}
22... f5 {[%clk 0:01:38.2]} 23. Bc6 {[%clk 0:01:41.6]} 23... e4 {[%clk
0:01:37.5]} 24. Re2 {[%clk 0:01:37.4]} 24... h6 {[%clk 0:01:20.6]} 25. Qxa5
{[%clk 0:01:34.8]} 25... Rb3 {[%clk 0:01:19.9]} 26. Ba4 {[%clk 0:01:30.1]} 26...
Rd3 {[%clk 0:01:18.8]} 27. Bc2 {[%clk 0:01:14.3]} 27... Rd4 {[%clk 0:01:16.8]}
28. b3 {[%clk 0:01:03.3]} 28... Kh7 {[%clk 0:01:12.6]} 29. f3 {[%clk 0:00:55.7]}
29... Ra8 {[%clk 0:01:05.5]} 30. Qb6 {[%clk 0:00:50.7]} 30... Ra6 {[%clk
0:01:05.1]} 31. Qb7 {[%clk 0:00:32.3]} 31... Rxa3 {[%clk 0:01:01.2]} 32. fxe4
{[%clk 0:00:32.1]} 32... Bg3 {[%clk 0:01:00.7]} 33. Re1 {[%clk 0:00:24.9]} 33...
Bxe1 {[%clk 0:00:56.9]} 34. Qxc7 {[%clk 0:00:24.5]} 34... Rd2 {[%clk 0:00:51.8]}
35. exf5 {[%clk 0:00:20.5]} 35... Rxc2 {[%clk 0:00:31.3]} 36. f6 {[%clk
0:00:20.3]} 36... Bf2+ {[%clk 0:00:17.1]} 37. Kh2 {[%clk 0:00:19.4]} 37... Kg6
{[%clk 0:00:13.9]} 38. Qxg7+ {[%clk 0:00:17.9]} 38... Kf5 {[%clk 0:00:14.8]} 39.
f7 {[%clk 0:00:17.1]} 39... Ke4 {[%clk 0:00:12.4]} 40. f8=Q {[%clk 0:00:18]}
40... Raa2 {[%clk 0:00:12.5]} 41. Qf3# {[%clk 0:00:16.9]} 1-0

[Event "*** Titled Tuesday Blitz"]
[Site "Chess.com"]
[Date "2020.05.12"]
[Round "7"]
[White "Berant"]
[Black "krstulov_alex"]
[Result "0-1"]
[WhiteElo "2364"]
[BlackElo "2547"]
[TimeControl "180+1"]
[EndTime "11:16:38 PDT"]
[Termination "krstulov_alex won by resignation"]

1. e4 {[%clk 0:03:00.9]} 1... c6 {[%clk 0:02:59.6]} 2. d4 {[%clk 0:03:00.4]}
2... d5 {[%clk 0:03:00.5]} 3. Nd2 {[%clk 0:03:00.7]} 3... dxe4 {[%clk
0:02:59.9]} 4. Nxe4 {[%clk 0:03:01.6]} 4... Nf6 {[%clk 0:03:00.5]} 5. Ng3 {[%clk
0:03:01]} 5... e5 {[%clk 0:03:00.4]} 6. N1e2 {[%clk 0:02:44.4]} 6... h5 {[%clk
0:02:49]} 7. h4 {[%clk 0:02:34.4]} 7... exd4 {[%clk 0:02:43.8]} 8. Nxd4 {[%clk
0:02:31.1]} 8... Bc5 {[%clk 0:02:43.7]} 9. c3 {[%clk 0:02:30.3]} 9... O-O {[%clk
0:02:43.4]} 10. Be2 {[%clk 0:02:29.3]} 10... Re8 {[%clk 0:02:42.2]} 11. Be3
{[%clk 0:02:28.6]} 11... Ng4 {[%clk 0:02:41.4]} 12. Bxg4 {[%clk 0:02:27.5]}
12... Bxg4 {[%clk 0:02:40.4]} 13. Qd2 {[%clk 0:02:27.5]} 13... Bxd4 {[%clk
0:02:25.4]} 14. cxd4 {[%clk 0:02:25.3]} 14... Nd7 {[%clk 0:02:25.2]} 15. f3
{[%clk 0:02:24.6]} 15... Nb6 {[%clk 0:02:15.8]} 16. Rc1 {[%clk 0:01:32.7]} 16...
Nd5 {[%clk 0:02:09.4]} 17. Ne4 {[%clk 0:01:19]} 17... Bf5 {[%clk 0:02:05.2]} 18.
O-O {[%clk 0:01:16.7]} 18... Bxe4 {[%clk 0:01:49.1]} 19. fxe4 {[%clk 0:01:14.7]}
19... Rxe4 {[%clk 0:01:50]} 20. Bg5 {[%clk 0:01:12]} 20... Qd7 {[%clk
0:01:46.6]} 21. Qd3 {[%clk 0:01:04.6]} 21... Rae8 {[%clk 0:01:46.2]} 22. Rc2
{[%clk 0:01:02.1]} 22... f6 {[%clk 0:01:42.8]} 23. Bc1 {[%clk 0:00:58.7]} 23...
Rxh4 {[%clk 0:01:39]} 24. Rcf2 {[%clk 0:00:55.9]} 24... Qg4 {[%clk 0:01:32.8]}
25. Rf5 {[%clk 0:00:42.9]} 25... Re2 {[%clk 0:01:12]} 26. R1f2 {[%clk
0:00:30.4]} 26... Rxf2 {[%clk 0:00:49.3]} 27. Rxf2 {[%clk 0:00:25.5]} 27... Qxd4
{[%clk 0:00:49.1]} 28. Qg6 {[%clk 0:00:22.8]} 28... Qd1+ {[%clk 0:00:36.9]} 29.
Rf1 {[%clk 0:00:22]} 29... Rh1+ {[%clk 0:00:37]} 30. Kxh1 {[%clk 0:00:22.1]}
30... Qxf1+ {[%clk 0:00:37.2]} 31. Kh2 {[%clk 0:00:23]} 31... Qxc1 {[%clk
0:00:37.4]} 32. Qe8+ {[%clk 0:00:22.6]} 32... Kh7 {[%clk 0:00:37.6]} 33. Qe4+
{[%clk 0:00:20]} 33... g6 {[%clk 0:00:36.9]} 34. Qe6 {[%clk 0:00:18.7]} 34...
Qf4+ {[%clk 0:00:36.7]} 35. Kh1 {[%clk 0:00:18.4]} 35... Qh4+ {[%clk 0:00:27.8]}
36. Kg1 {[%clk 0:00:17.1]} 36... Qd4+ {[%clk 0:00:27.9]} 37. Kh1 {[%clk
0:00:16.5]} 37... f5 {[%clk 0:00:25.2]} 38. Qf7+ {[%clk 0:00:15]} 38... Qg7
{[%clk 0:00:25.2]} 39. Qe6 {[%clk 0:00:15.2]} 39... h4 {[%clk 0:00:25.1]} 40.
Qe1 {[%clk 0:00:13.4]} 40... Qe7 {[%clk 0:00:25.3]} 41. Qd1 {[%clk 0:00:12.1]}
41... Kh6 {[%clk 0:00:25.1]} 42. Qd2+ {[%clk 0:00:12]} 42... g5 {[%clk 0:00:25]}
43. Qf2 {[%clk 0:00:12.2]} 43... g4 {[%clk 0:00:24.5]} 44. Qf4+ {[%clk
0:00:12.2]} 44... Nxf4 {[%clk 0:00:24.2]} 0-1

[Event "*** Titled Tuesday Blitz"]
[Site "Chess.com"]
[Date "2020.05.12"]
[Round "7"]
[White "Alomaterapia"]
[Black "mmaks007"]
[Result "1-0"]
[WhiteElo "2471"]
[BlackElo "2249"]
[TimeControl "180+1"]
[EndTime "11:16:38 PDT"]
[Termination "Alomaterapia won by resignation"]

1. d4 {[%clk 0:03:00.9]} 1... g6 {[%clk 0:02:59]} 2. e4 {[%clk 0:02:59.9]} 2...
Bg7 {[%clk 0:02:58.8]} 3. Nf3 {[%clk 0:03:00.1]} 3... d6 {[%clk 0:02:58.9]} 4.
Bc4 {[%clk 0:03:00.3]} 4... Nf6 {[%clk 0:02:57.7]} 5. Qe2 {[%clk 0:03:00.2]}
5... Bg4 {[%clk 0:02:56.5]} 6. h3 {[%clk 0:02:57.1]} 6... Bxf3 {[%clk
0:02:53.6]} 7. Qxf3 {[%clk 0:02:58]} 7... e5 {[%clk 0:02:53.7]} 8. dxe5 {[%clk
0:02:54.6]} 8... dxe5 {[%clk 0:02:54.6]} 9. O-O {[%clk 0:02:54]} 9... O-O {[%clk
0:02:53.2]} 10. Bg5 {[%clk 0:02:43.9]} 10... h6 {[%clk 0:02:47.7]} 11. Be3
{[%clk 0:02:44]} 11... Nbd7 {[%clk 0:02:44.7]} 12. Nc3 {[%clk 0:02:39.6]} 12...
c6 {[%clk 0:02:44.4]} 13. a4 {[%clk 0:02:39.1]} 13... a5 {[%clk 0:02:41.3]} 14.
Qg3 {[%clk 0:02:16.5]} 14... Kh7 {[%clk 0:02:40.4]} 15. Rad1 {[%clk 0:02:13]}
15... Qc7 {[%clk 0:02:39]} 16. f3 {[%clk 0:02:03.7]} 16... Nh5 {[%clk 0:02:31]}
17. Qf2 {[%clk 0:02:03.9]} 17... Nf4 {[%clk 0:02:25.6]} 18. Kh2 {[%clk
0:02:03.3]} 18... Kg8 {[%clk 0:01:25.6]} 19. Rd2 {[%clk 0:02:00.8]} 19... Nf6
{[%clk 0:01:15.1]} 20. Rfd1 {[%clk 0:01:58.5]} 20... b5 {[%clk 0:01:06.7]} 21.
axb5 {[%clk 0:01:54.9]} 21... cxb5 {[%clk 0:01:07.6]} 22. Bxb5 {[%clk 0:01:55]}
22... Rfc8 {[%clk 0:01:03.7]} 23. Ba4 {[%clk 0:01:45.5]} 23... Ne6 {[%clk
0:00:59.2]} 24. Nb5 {[%clk 0:01:36.5]} 24... Qc4 {[%clk 0:00:49.6]} 25. b3
{[%clk 0:01:35.3]} 25... Qb4 {[%clk 0:00:42.1]} 26. c3 {[%clk 0:01:30.1]} 26...
Qf8 {[%clk 0:00:39.6]} 27. Nd6 {[%clk 0:01:25.3]} 27... Rd8 {[%clk 0:00:34.6]}
28. Nc4 {[%clk 0:01:23.7]} 28... Rxd2 {[%clk 0:00:33.7]} 29. Rxd2 {[%clk
0:01:24.1]} 29... Nh5 {[%clk 0:00:24.6]} 30. Rd7 {[%clk 0:01:17.1]} 30... Rd8
{[%clk 0:00:18.7]} 31. Qd2 {[%clk 0:01:13.3]} 31... Rxd7 {[%clk 0:00:18.4]} 32.
Qxd7 {[%clk 0:01:14.2]} 32... Nhf4 {[%clk 0:00:17.9]} 33. Nxa5 {[%clk
0:01:07.4]} 33... Qa3 {[%clk 0:00:15.9]} 34. Qd2 {[%clk 0:01:00.1]} 34... Qa1
{[%clk 0:00:15.1]} 35. Nc6 {[%clk 0:00:51.8]} 35... Bf6 {[%clk 0:00:13.8]} 36.
Qc1 {[%clk 0:00:51.1]} 36... Qa2 {[%clk 0:00:12.5]} 37. Qd2 {[%clk 0:00:51.4]}
37... Qa1 {[%clk 0:00:12.7]} 38. g3 {[%clk 0:00:50.1]} 38... Nh5 {[%clk
0:00:11.4]} 39. Nb4 {[%clk 0:00:44]} 39... Qf1 {[%clk 0:00:10.5]} 40. Qf2 {[%clk
0:00:41.3]} 40... Qb1 {[%clk 0:00:09.5]} 41. Nd5 {[%clk 0:00:40.6]} 41... Bd8
{[%clk 0:00:08.9]} 42. b4 {[%clk 0:00:37.3]} 42... Kg7 {[%clk 0:00:08.6]} 43.
Bc2 {[%clk 0:00:32.8]} 43... Qb2 {[%clk 0:00:07.9]} 44. Bd3 {[%clk 0:00:32.9]}
44... Qa3 {[%clk 0:00:07.9]} 45. b5 {[%clk 0:00:31.4]} 45... f5 {[%clk 0:00:08]}
46. exf5 {[%clk 0:00:31.2]} 46... gxf5 {[%clk 0:00:08.2]} 47. Bxf5 {[%clk
0:00:32.1]} 1-0